bitfinex/quotes_SOLUSD_20241013
["timestamp","ask_amount","ask_price","bid_price","bid_amount"]
[1728856029177,2.10946009,147.7,147.68,6.7713]
[1728856029380,2.10946009,147.69,147.68,6.7713]
[1728856030383,5.48454965,147.69,147.68,6.7713]
[1728856032765,5.48445519,147.69,147.68,17.90089204]
[1728856040184,6.7692,147.73,147.68,17.90089204]
[1728856040388,5.48457157,147.72,147.68,17.90089204]
[1728856040605,5.48457157,147.71,147.68,17.90089204]
[1728856040807,5.48457157,147.7,147.68,17.90089204]
[1728856041101,5.48457157,147.69,147.68,17.90089204]
[1728856041489,10.56786853,147.69,147.68,17.90089204]
[1728856042418,5.48457157,147.69,147.68,17.90089204]
[1728856047885,7.94759761,147.74,147.68,11.12959204]
[1728856048090,5.48525538,147.73,147.69,6.7709]
[1728856048291,5.48525538,147.72,147.69,6.7709]
[1728856048508,5.48525538,147.71,147.69,6.7709]
[1728856048815,5.48525538,147.7,147.69,6.7709]
[1728856051506,10.57301548,147.7,147.69,6.7709]
[1728856053509,5.48525538,147.7,147.69,6.7709]
[1728856055702,5.48673237,147.7,147.69,6.7709]
[1728856063625,7.94759761,147.74,147.69,6.7709]
[1728856063829,5.49025498,147.73,147.69,6.7709]
[1728856064022,3.37861967,147.72,147.69,6.7709]
[1728856064224,3.37861967,147.71,147.69,6.7709]
[1728856064434,5.49025696,147.7,147.69,6.7709]
[1728856067810,5.48989201,147.7,147.69,6.7709]
[1728856068233,5.48989201,147.7,147.68,6.7712]
[1728856068533,5.48989201,147.69,147.68,6.7712]
[1728856071637,5.48889232,147.69,147.68,6.7712]
[1728856075343,6.7696,147.72,147.68,6.7712]
[1728856075547,2.11087049,147.69,147.67,23.7007]
[1728856075873,5.48825488,147.68,147.65,29.154]
[1728856076025,5.48825488,147.67,147.65,29.154]
[1728856076344,2.11086726,147.66,147.65,29.154]
[1728856077235,2.11086726,147.66,147.65,6.7726]
[1728856077438,5.4879582,147.66,147.65,6.7726]
[1728856079638,2.11086726,147.66,147.65,6.7726]
[1728856079845,7.19465666,147.66,147.65,6.7726]
[1728856080430,10.57114093,147.66,147.65,6.7726]
[1728856081151,7.19465666,147.66,147.65,6.7726]
[1728856082353,7.19465666,147.66,147.65,17.90219204]
[1728856085853,1.17751198,147.72,147.65,11.12959204]
[1728856086056,10.56763541,147.71,147.65,11.12959204]
[1728856086261,10.56730651,147.7,147.67,6.7716]
[1728856086434,7.19186536,147.69,147.67,6.7716]
[1728856086629,10.56730651,147.68,147.67,6.7716]
[1728856093576,1.17751198,147.72,147.68,6.7711]
[1728856093767,3.37381658,147.71,147.68,6.7711]
[1728856093963,10.56427525,147.7,147.68,6.7711]
[1728856094155,10.56427525,147.69,147.68,6.7711]
[1728856097042,5.48245194,147.69,147.68,6.7711]
[1728856097261,10.56452067,147.69,147.68,6.7711]
[1728856097953,5.48245194,147.69,147.68,6.7711]
[1728856108289,3.37429029,147.69,147.68,6.7711]
[1728856108467,5.48322172,147.69,147.68,6.7711]
[1728856115993,5.48409604,147.69,147.68,6.7711]
[1728856120108,5.48480008,147.69,147.68,23.6992]
[1728856127226,16.2689,147.73,147.68,16.9279]
[1728856127430,3.37611101,147.72,147.69,6.7708]
[1728856127633,5.48618039,147.72,147.69,6.7708]
[1728856127814,5.48618039,147.71,147.69,6.7708]
[1728856128011,5.48618039,147.7,147.69,6.7708]
[1728856131134,23.038,147.73,147.69,6.7708]
[1728856131311,5.48617988,147.72,147.69,6.7708]
[1728856131517,5.48617988,147.71,147.69,6.7708]
[1728856131730,5.48617988,147.7,147.69,6.7708]
[1728856132207,5.48617988,147.7,147.69,8.12494314]
[1728856132411,5.48617988,147.7,147.69,8.12483812]
[1728856133831,5.48617988,147.7,147.69,6.7708]
[1728856134426,5.48617988,147.7,147.69,8.12480695]
[1728856135136,5.48609466,147.7,147.69,8.12490695]
[1728856138943,5.48598916,147.7,147.69,1.35400695]
[1728856139145,5.48598916,147.7,147.69,8.12490695]
[1728856140954,5.48598916,147.7,147.69,6.7709]
[1728856141673,6.7691,147.73,147.69,6.7709]
[1728856141957,5.48615457,147.72,147.69,6.7709]
[1728856142157,5.48615457,147.71,147.69,6.7709]
[1728856142350,5.48615457,147.7,147.69,6.7709]
[1728856144961,5.48615457,147.7,147.68,16.9279]
[1728856145162,5.48615457,147.69,147.68,23.6991]
[1728856145837,5.48658214,147.69,147.68,23.6991]
[1728856157381,3.37721034,147.69,147.68,23.6991]
[1728856157676,5.4879668,147.69,147.68,23.6991]
[1728856159658,5.4879668,147.69,147.68,16.9279]
[1728856159863,5.4879668,147.69,147.67,6.7717]
[1728856160063,6.7696,147.72,147.67,6.7717]
[1728856160064,5.4879668,147.68,147.67,6.7717]
[1728856161073,5.48790248,147.68,147.67,6.7717]
[1728856164886,6.7696,147.72,147.67,6.7717]
[1728856165180,5.48781832,147.71,147.67,6.7717]
[1728856165487,5.48781832,147.7,147.67,6.7717]
[1728856165656,5.4878039,147.69,147.67,6.7717]
[1728856166002,5.48780366,147.68,147.67,6.7717]
[1728856169859,5.48780366,147.68,147.66,6.7722]
[1728856170059,5.48780366,147.67,147.66,6.7722]
[1728856172692,5.48764667,147.67,147.66,6.7722]
[1728856174388,5.55743233,147.67,147.66,6.7722]
[1728856180195,5.55704597,147.67,147.66,6.7722]
[1728856181711,5.55704597,147.67,147.65,16.9318]
[1728856181874,29.26414431,147.66,147.63,6.7735]
[1728856182204,2.11048473,147.65,147.63,6.7735]
[1728856182376,2.11048473,147.64,147.63,6.7735]
[1728856183271,23.84666966,147.67,147.63,6.7735]
[1728856183474,5.48626408,147.66,147.63,6.7735]
[1728856183681,2.11010157,147.65,147.63,6.7735]
[1728856183871,23.84666966,147.67,147.64,6.7732]
[1728856184091,2.11010168,147.66,147.64,6.7732]
[1728856184304,2.11010168,147.65,147.64,6.7732]
[1728856185602,7.19518559,147.65,147.64,6.7732]
[1728856186193,5.48583836,147.65,147.64,6.7732]
[1728856193218,10.5721794,147.65,147.64,6.7732]
[1728856195203,0.06978566,147.67,147.64,6.7732]
[1728856195411,10.56191235,147.66,147.64,6.7732]
[1728856195611,10.56191235,147.65,147.64,6.7732]
[1728856198911,0.06978566,147.67,147.63,6.7735]
[1728856199090,10.55120784,147.66,147.63,6.7735]
[1728856199411,13.51990135,147.65,147.63,6.7735]
[1728856199618,8.44384489,147.64,147.63,6.7735]
[1728856199821,10.54929841,147.64,147.63,6.7735]
[1728856201316,10.54929841,147.64,147.62,16.9349]
[1728856201317,10.54929841,147.64,147.62,23.709]
[1728856201522,10.54929841,147.63,147.62,23.709]
[1728856201706,10.54645193,147.63,147.62,23.709]
[1728856202196,10.54645193,147.63,147.62,16.9349]
[1728856202393,10.54645193,147.63,147.62,6.7741]
[1728856203008,10.54645193,147.63,147.61,6.7745]
[1728856203315,10.54645193,147.62,147.61,6.7745]
[1728856204705,5.47225592,147.62,147.61,6.7745]
[1728856205306,3.36754211,147.62,147.61,6.7745]
[1728856205503,3.3614805,147.62,147.61,6.7745]
[1728856205701,5.46240581,147.62,147.61,6.7745]
[1728856208438,5.46240581,147.62,147.6,6.7749]
[1728856208635,5.46240581,147.61,147.6,6.7749]
[1728856209133,6.7727,147.65,147.6,6.7749]
[1728856209330,5.4574077,147.64,147.6,6.7749]
[1728856209545,5.45559014,147.63,147.61,6.7745]
[1728856209709,5.45559014,147.62,147.61,6.7745]
[1728856210413,5.45559014,147.62,147.6,6.7749]
[1728856210613,5.45559014,147.61,147.6,6.7749]
[1728856211314,5.45559014,147.61,147.59,16.9384]
[1728856211628,2.0983039,147.6,147.59,16.9384]
[1728856212630,2.0983039,147.6,147.59,23.7139]
[1728856217732,2.0983039,147.6,147.58,6.7759]
[1728856217946,1.17535543,147.66,147.49,11.12959204]
[1728856217947,6.7759,147.58,147.49,11.12959204]
[1728856218154,21.40439288,147.59,147.51,6.7791]
[1728856218155,6.7769,147.56,147.51,6.7791]
[1728856218448,2.0983039,147.55,147.51,6.7791]
[1728856218632,6.7769,147.56,147.51,6.7791]
[1728856218814,2.09034304,147.55,147.51,6.7791]
[1728856219019,2.09034304,147.54,147.51,6.7791]
[1728856219218,6.7769,147.56,147.51,6.2791]
[1728856219416,5.43102413,147.55,147.51,6.2791]
[1728856219638,2.08886168,147.54,147.51,6.2791]
[1728856219827,6.7769,147.56,147.51,6.2791]
[1728856220028,5.43101281,147.55,147.51,6.2791]
[1728856220343,2.08885108,147.54,147.51,6.2791]
[1728856220553,6.7769,147.56,147.51,6.2791]
[1728856220749,5.4272783,147.55,147.51,6.2791]
[1728856221058,6.7765,147.57,147.51,6.2791]
[1728856221344,5.42438039,147.56,147.51,6.2791]
[1728856222960,6.7774,147.55,147.49,23.7288]
[1728856223169,2.08630015,147.54,147.49,23.7288]
[1728856223351,6.7774,147.55,147.5,6.7796]
[1728856223545,2.0841616,147.54,147.5,6.7796]
[1728856223745,6.7774,147.55,147.5,6.7796]
[1728856227766,1.17569896,147.57,147.49,16.9491]
[1728856227980,35.96515464,147.56,147.51,6.7791]
[1728856228274,2.0812964,147.55,147.51,6.7791]
[1728856228867,2.0812964,147.55,147.49,16.9491]
[1728856229072,8.8585964,147.55,147.5,6.7794]
[1728856229267,6.7773,147.55,147.5,6.7794]
[1728856233171,23.776884,147.56,147.49,16.9491]
[1728856233376,6.7779,147.54,147.49,23.7291]
[1728856233885,6.7779,147.54,147.49,16.9491]
[1728856234092,6.7779,147.54,147.5,6.7796]
[1728856234673,0.06978566,147.52,147.5,6.7796]
[1728856234866,6.7779,147.54,147.5,6.7796]
[1728856241987,6.7774,147.55,147.51,6.779]
[1728856242289,2.07886669,147.54,147.51,6.779]
[1728856242494,30.553784,147.56,147.51,6.779]
[1728856242671,2.07901641,147.55,147.51,6.779]
[1728856242872,30.553784,147.56,147.51,6.779]
[1728856242873,2.07901641,147.54,147.51,6.779]
[1728856243065,30.553784,147.56,147.51,6.779]
[1728856243288,2.07922337,147.55,147.51,6.779]
[1728856243497,2.07922337,147.54,147.51,6.779]
[1728856243662,6.7775,147.55,147.51,6.779]
[1728856243867,2.07922824,147.54,147.51,6.779]
[1728856244081,30.553784,147.56,147.51,6.779]
[1728856244289,2.07949083,147.55,147.51,6.779]
[1728856244491,2.07949083,147.54,147.51,6.779]
[1728856244675,30.553784,147.56,147.51,6.779]
[1728856244871,5.40667637,147.55,147.51,6.779]
[1728856245981,12.18407637,147.55,147.51,6.779]
[1728856246169,2.07949091,147.54,147.51,6.779]
[1728856246366,2.07949091,147.54,147.49,23.7288]
[1728856246578,2.07949091,147.54,147.5,6.7793]
[1728856247067,2.07949091,147.54,147.51,6.779]
[1728856248092,2.07949091,147.54,147.53,6.7782]
[1728856248298,2.07949091,147.54,147.51,23.7265]
[1728856248478,30.553784,147.56,147.51,23.7265]
[1728856248670,5.41130209,147.55,147.51,23.7265]
[1728856248978,2.08127003,147.54,147.51,23.7265]
[1728856249176,30.553784,147.56,147.51,23.7265]
[1728856249391,5.41307426,147.55,147.51,23.7265]
[1728856249691,2.08195164,147.54,147.51,23.7265]
[1728856249874,6.7769,147.56,147.51,23.7265]
[1728856250071,5.41309081,147.55,147.51,23.7265]
[1728856251306,5.41309081,147.55,147.51,16.9474]
[1728856251600,2.081958,147.54,147.51,16.9474]
[1728856252106,2.081958,147.54,147.52,8.13432547]
[1728856252272,6.7769,147.56,147.52,8.13432547]
[1728856252488,5.42001136,147.55,147.52,8.13432547]
[1728856252683,2.08461975,147.54,147.52,8.13432547]
[1728856252908,2.08461975,147.53,147.52,8.13432547]
[1728856253232,7.95219896,147.57,147.52,8.13432547]
[1728856253517,5.42159412,147.56,147.53,6.7782]
[1728856253709,5.42159412,147.55,147.53,6.7782]
[1728856253916,2.08522828,147.54,147.53,6.7782]
[1728856254105,2.08537774,147.54,147.53,6.7782]
[1728856254618,5.42279737,147.56,147.53,6.7782]
[1728856254803,2.08537774,147.55,147.53,6.7782]
[1728856254986,2.08537774,147.54,147.53,6.7782]
[1728856255292,6.7765,147.57,147.53,6.7782]
[1728856255492,5.42517927,147.56,147.53,6.7782]
[1728856255691,2.08660741,147.55,147.53,6.7782]
[1728856255910,6.7765,147.57,147.53,6.7782]
[1728856256134,5.42518247,147.56,147.53,6.7782]
[1728856256418,2.08660864,147.55,147.53,6.7782]
[1728856256719,6.7765,147.57,147.53,6.7782]
[1728856256902,5.42716958,147.56,147.53,6.7782]
[1728856257104,2.08737291,147.55,147.53,6.7782]
[1728856257304,2.08737291,147.54,147.53,6.7782]
[1728856257495,2.08737291,147.56,147.53,6.7782]
[1728856257697,2.08737291,147.55,147.53,6.7782]
[1728856257906,2.08737291,147.54,147.53,6.7782]
[1728856258106,2.08737291,147.56,147.53,6.7782]
[1728856258308,2.08737291,147.55,147.53,6.7782]
[1728856259307,2.08737291,147.54,147.53,6.7782]
[1728856259809,2.08737291,147.54,147.5,22.8838]
[1728856260023,1.17568132,147.59,147.55,6.7772]
[1728856260221,5.43456194,147.58,147.54,16.944]
[1728856260405,5.43456194,147.57,147.55,6.7773]
[1728856260608,5.43455739,147.56,147.55,6.7773]
[1728856261010,2.09021613,147.56,147.55,6.7773]
[1728856261414,2.09094021,147.56,147.55,8.1324678]
[1728856261726,5.43644455,147.56,147.55,8.1324678]
[1728856261924,2.09094021,147.56,147.55,8.1324678]
[1728856262716,5.43644455,147.56,147.55,8.1324678]
[1728856263026,5.43644455,147.56,147.55,6.7773]
[1728856264224,2.09094021,147.56,147.55,6.7773]
[1728856264817,5.43644455,147.56,147.55,6.7773]
[1728856265330,5.44293415,147.56,147.55,6.7773]
[1728856265514,2.09357046,147.56,147.55,30.45572713]
[1728856265715,5.4432832,147.56,147.55,29.1005]
[1728856266026,2.09357046,147.56,147.55,29.1005]
[1728856266530,5.4432832,147.56,147.55,30.45562076]
[1728856267613,5.4432832,147.56,147.55,29.1005]
[1728856268311,5.4432832,147.56,147.55,30.45563534]
[1728856268907,5.44911599,147.56,147.55,30.45563534]
[1728856269730,5.45082728,147.56,147.55,30.45563534]
[1728856271144,5.45082728,147.56,147.55,41.58522738]
[1728856271426,6.7728,147.65,147.6,6.7746]
[1728856271610,5.45461332,147.64,147.61,1.35477245]
[1728856271807,5.45461332,147.63,147.61,1.35477245]
[1728856272010,5.45461332,147.62,147.61,1.35477245]
[1728856272216,5.45461332,147.62,147.61,8.12937245]
[1728856272729,6.7722,147.67,147.62,6.7738]
[1728856272936,5.45547156,147.66,147.63,1.35451479]
[1728856273111,5.45547156,147.65,147.63,1.35451479]
[1728856273303,5.45547156,147.64,147.63,1.35451479]
[1728856274435,5.45547156,147.64,147.63,8.12811479]
[1728856276333,6.7714,147.68,147.63,8.12811479]
[1728856276542,5.45118892,147.67,147.63,8.12811479]
[1728856276831,5.45118892,147.66,147.63,8.12811479]
[1728856277037,5.45118892,147.65,147.63,8.12811479]
[1728856277242,5.45118892,147.64,147.63,8.12811479]
[1728856277944,5.45118892,147.64,147.61,16.9356]
[1728856278115,5.45118892,147.63,147.62,1.35465602]
[1728856279020,5.45118892,147.63,147.61,23.7099]
[1728856279220,5.45118892,147.62,147.61,16.9356]
[1728856279426,5.45118892,147.62,147.61,23.7102]
[1728856279842,5.45118892,147.62,147.61,25.06472864]
[1728856280143,5.45118892,147.62,147.61,23.7102]
[1728856280441,5.45118892,147.62,147.61,25.06473915]
[1728856280639,5.45118892,147.62,147.61,23.7102]
[1728856280844,5.45118892,147.62,147.61,25.06472958]
[1728856281049,2.09661112,147.62,147.61,23.7102]
[1728856281247,2.09661112,147.62,147.61,25.06469877]
[1728856281422,2.09661112,147.62,147.61,23.7102]
[1728856282457,2.09661112,147.62,147.61,25.06469507]
[1728856282660,2.09661112,147.62,147.61,23.7102]
[1728856283153,2.09661112,147.62,147.61,25.06469544]
[1728856283658,2.09661112,147.62,147.61,25.06469805]
[1728856284044,0.06978566,147.64,147.62,6.7741]
[1728856284237,0.06978566,147.64,147.63,1.35447853]
[1728856284555,2.16183338,147.64,147.62,6.7741]
[1728856284855,2.09204772,147.63,147.62,6.7741]
[1728856286850,2.09204772,147.63,147.62,8.12859904]
[1728856288260,0.06978566,147.64,147.62,8.12859904]
[1728856288456,2.09072512,147.63,147.62,8.12859904]
[1728856288959,0.06978566,147.64,147.62,8.12859904]
[1728856288960,0.06978566,147.64,147.62,8.12859652]
[1728856289253,0.06978566,147.64,147.63,6.7736]
[1728856289636,2.15989111,147.64,147.63,6.7736]
[1728856292744,0.06978566,147.64,147.63,6.7736]
[1728856299873,0.06978566,147.64,147.63,8.12787108]
[1728856301474,0.06978566,147.64,147.63,6.7736]
[1728856302356,0.06978566,147.64,147.63,8.12787225]
[1728856304879,0.06978566,147.64,147.63,6.7736]
[1728856305760,0.06978566,147.64,147.63,8.12783617]
[1728856306176,0.06978566,147.64,147.63,6.7736]
[1728856306887,0.06978566,147.64,147.63,8.12779976]
[1728856309982,0.06978566,147.64,147.63,31.90468376]
[1728856310362,0.06978566,147.64,147.63,30.550484]
[1728856312471,0.06978566,147.64,147.63,74.32521938]
[1728856312871,0.06978566,147.64,147.63,72.971184]
[1728856313074,0.06978566,147.64,147.63,74.32518517]
[1728856313875,0.06978566,147.64,147.63,72.971184]
[1728856315790,0.06978566,147.64,147.63,74.32518588]
[1728856316378,0.06978566,147.64,147.63,72.971184]
[1728856316892,0.06978566,147.64,147.63,74.32518517]
[1728856317275,0.06978566,147.64,147.63,72.971184]
[1728856317590,0.06978566,147.64,147.63,74.32518543]
[1728856319095,0.06978566,147.64,147.63,72.971184]
[1728856321192,0.06978566,147.64,147.63,84.10077604]
[1728856321690,0.06978566,147.64,147.63,85.45477798]
[1728856321875,0.06978566,147.64,147.63,84.10077604]
[1728856322270,0.06978566,147.64,147.63,85.45477712]
[1728856322590,0.06978566,147.64,147.63,84.10077604]
[1728856322897,0.06978566,147.64,147.63,85.45477722]
[1728856323899,0.06978566,147.64,147.63,84.10077604]
[1728856356304,2.17210386,147.64,147.63,84.10077604]
[1728856359734,2.1728357,147.64,147.63,84.10077604]
[1728856366340,5.54070219,147.64,147.63,84.10077604]
[1728856367215,0.06978566,147.64,147.63,84.10077604]
[1728856367416,5.54361949,147.64,147.63,84.10077604]
[1728856369939,5.54361949,147.64,147.63,77.57527604]
[1728856371638,2.17510636,147.64,147.63,78.92931899]
[1728856371820,0.06978566,147.64,147.63,77.57527604]
[1728856372537,0.06978566,147.64,147.63,78.92922959]
[1728856372736,0.06978566,147.64,147.63,77.57527604]
[1728856375645,15.324,147.71,147.69,16.9272]
[1728856375816,5.47534081,147.7,147.69,23.698]
[1728856385046,5.47534081,147.7,147.69,25.05182795]
[1728856388541,15.6246,147.75,147.7,6.7701]
[1728856388752,5.46731401,147.74,147.7,6.7701]
[1728856388954,5.46731401,147.73,147.71,1.35375344]
[1728856389150,5.46731401,147.72,147.71,1.35375344]
[1728856389756,5.46731401,147.72,147.71,8.12375344]
[1728856392468,5.46607375,147.72,147.71,8.12375344]
[1728856394676,5.46607375,147.72,147.71,31.90063744]
[1728856394964,2.10233606,147.72,147.71,30.546884]
[1728856395662,5.4642093,147.72,147.71,30.546884]
[1728856396239,2.10116663,147.72,147.71,23.776884]
[1728856396556,2.10116663,147.72,147.71,30.546884]
[1728856399166,28.6064,147.79,147.71,23.776884]
[1728856399465,5.4590175,147.78,147.74,6.7685]
[1728856399672,5.4590175,147.77,147.74,6.7685]
[1728856399848,5.4590175,147.76,147.74,6.7685]
[1728856400048,5.4590175,147.75,147.74,6.7685]
[1728856400257,28.6064,147.79,147.74,6.7685]
[1728856400445,5.4582051,147.78,147.74,6.7685]
[1728856400643,5.45820582,147.77,147.74,6.7685]
[1728856400948,5.45820582,147.76,147.74,6.7685]
[1728856401154,5.45820582,147.75,147.74,6.7685]
[1728856401370,5.45820582,147.75,147.74,8.12197889]
[1728856402764,5.45820582,147.75,147.74,6.7685]
[1728856404558,5.45544511,147.75,147.74,6.7685]
[1728856405677,5.45544511,147.75,147.74,8.12192424]
[1728856405970,5.45544511,147.75,147.74,6.7685]
[1728856406956,2.09824812,147.75,147.74,6.7685]
[1728856407157,5.45460033,147.75,147.74,6.7685]
[1728856408661,2.09824812,147.75,147.74,6.7685]
[1728856410079,5.45369429,147.75,147.74,6.7685]
[1728856410553,2.09824812,147.75,147.74,8.12189739]
[1728856411481,2.09824812,147.75,147.74,6.7685]
[1728856412553,2.09824812,147.75,147.74,8.12182464]
[1728856412876,15.5132,147.79,147.75,6.7678]
[1728856413059,5.45162203,147.78,147.75,6.7678]
[1728856413256,5.45162203,147.77,147.75,6.7678]
[1728856413586,5.45162203,147.76,147.75,6.7678]
[1728856420653,2.0967777,147.76,147.75,6.7678]
[1728856421760,5.45161595,147.76,147.75,6.7678]
[1728856422685,2.0967777,147.76,147.75,6.7678]
[1728856423180,5.45224793,147.76,147.75,6.7678]
[1728856424371,2.0967777,147.76,147.75,6.7678]
[1728856427373,5.45360967,147.76,147.75,6.7678]
[1728856427586,2.0967777,147.76,147.75,6.7678]
[1728856428468,23.1964,147.82,147.74,1.35332464]
[1728856428672,5.45569563,147.81,147.77,6.7671]
[1728856428872,5.45569563,147.8,147.78,1.35313846]
[1728856429093,5.45569563,147.79,147.78,1.35313846]
[1728856436307,5.46010232,147.79,147.78,1.35313846]
[1728856438395,5.46010232,147.79,147.78,6.7668]
[1728856442597,5.46274563,147.79,147.78,6.7668]
[1728856453596,6.7651,147.82,147.78,6.7668]
[1728856453811,5.47233147,147.81,147.78,6.7668]
[1728856454107,5.47233147,147.8,147.78,6.7668]
[1728856454318,5.47233147,147.79,147.78,6.7668]
[1728856457514,5.47428969,147.79,147.78,6.7668]
[1728856458008,5.47432632,147.79,147.78,6.7668]
[1728856462202,5.47432632,147.79,147.78,58.93822524]
[1728856462405,5.47432632,147.79,147.78,65.51332524]
[1728856464423,5.47432632,147.79,147.78,85.51332524]
[1728856465606,0.8657993,147.84,147.8,6.7655]
[1728856465817,5.47223506,147.83,147.81,11.12959204]
[1728856466131,5.47223506,147.82,147.81,11.12959204]
[1728856467004,5.47223506,147.82,147.81,12.48232243]
[1728856469219,5.47223506,147.82,147.81,11.12959204]
[1728856469628,5.47223506,147.82,147.8,17.89509204]
[1728856469813,5.47223506,147.81,147.8,17.89509204]
[1728856472800,2.10470579,147.81,147.8,19.24783936]
[1728856473605,2.06036406,147.81,147.8,19.24783936]
[1728856474712,2.06036406,147.81,147.8,17.89509204]
[1728856477527,2.0589464,147.81,147.8,17.89509204]
[1728856482321,2.0589464,147.81,147.8,37.89509204]
[1728856482514,0.8657993,147.84,147.81,6.7654]
[1728856482715,5.3507225,147.83,147.81,17.89499204]
[1728856482940,0.8657993,147.84,147.82,1.35267831]
[1728856483125,5.35072543,147.83,147.81,17.89499204]
[1728856483328,2.05797133,147.82,147.81,17.89499204]
[1728856483834,2.05776418,147.82,147.81,17.89499204]
[1728856485330,2.05754324,147.82,147.81,17.89499204]
[1728856487852,0.8657993,147.84,147.81,36.25912776]
[1728856488052,0.8657993,147.84,147.83,6.7645]
[1728856488354,2.92287373,147.84,147.83,6.7645]
[1728856488533,6.21417926,147.84,147.83,6.7645]
[1728856489254,4.15676965,147.84,147.83,6.7645]
[1728856489434,2.92265577,147.84,147.83,6.7645]
[1728856489925,2.92265577,147.84,147.83,8.11698633]
[1728856492556,2.92265577,147.84,147.78,59.403]
[1728856492767,5.346767,147.83,147.8,6.7658]
[1728856492969,2.05685647,147.82,147.8,6.7658]
[1728856493147,0.8657993,147.84,147.8,6.7658]
[1728856493344,5.34595108,147.83,147.8,17.89539204]
[1728856493544,2.05613464,147.82,147.8,17.89539204]
[1728856493750,0.8657993,147.84,147.8,17.89539204]
[1728856494046,5.34602404,147.83,147.8,17.89539204]
[1728856494247,2.05616309,147.82,147.8,17.89539204]
[1728856494443,0.8657993,147.84,147.8,17.89539204]
[1728856494645,5.34610589,147.83,147.8,17.89539204]
[1728856494846,2.05619457,147.82,147.81,1.35275375]
[1728856495045,2.05619457,147.82,147.81,8.11815375]
[1728856497162,0.8657993,147.84,147.81,8.11815375]
[1728856497362,2.0562925,147.82,147.81,8.11815375]
[1728856500370,2.0562925,147.82,147.81,6.7654]
[1728856501976,2.0562925,147.82,147.81,8.1181399]
[1728856503075,2.0562925,147.82,147.81,30.542284]
[1728856503256,0.8657993,147.84,147.82,6.7648]
[1728856503898,2.05681985,147.83,147.82,6.7648]
[1728856507380,2.0572806,147.83,147.82,6.7648]
[1728856508083,0.8657993,147.84,147.82,6.7648]
[1728856508388,2.05742099,147.83,147.82,6.7648]
[1728856511188,0.8657993,147.84,147.82,6.7648]
[1728856511360,2.05773782,147.83,147.82,6.7648]
[1728856513189,2.05773782,147.83,147.82,30.541684]
[1728856513581,2.05773782,147.83,147.82,6.7648]
[1728856516692,2.05773782,147.83,147.82,30.541684]
[1728856517191,0.8657993,147.84,147.83,50.541384]
[1728856518262,0.6,147.97,147.89,23.776884]
[1728856518481,10.05435616,147.96,147.91,23.776884]
[1728856518661,3.29545616,147.95,147.91,23.776884]
[1728856518866,3.29545616,147.94,147.91,23.776884]
[1728856519097,3.29545616,147.93,147.91,23.776884]
[1728856519274,3.29545616,147.92,147.91,23.776884]
[1728856519679,3.29545616,147.92,147.9,6.7609]
[1728856519680,3.29545616,147.92,147.9,25.12862208]
[1728856519894,6.7586,147.96,147.92,23.776884]
[1728856520066,3.29497747,147.95,147.92,23.776884]
[1728856520272,3.29497747,147.94,147.92,34.90647604]
[1728856520467,3.29497747,147.93,147.92,41.66657604]
[1728856521267,3.29497747,147.93,147.92,43.01820772]
[1728856522262,7.5872281,147.98,147.93,6.7598]
[1728856522467,10.04978404,147.97,147.92,17.88979204]
[1728856522677,6.7581,147.97,147.93,23.776884]
[1728856522998,3.29167892,147.96,147.93,23.776884]
[1728856523200,3.29167892,147.95,147.93,6.7598]
[1728856523401,0.8295281,147.98,147.94,30.318084]
[1728856523602,0.8295281,147.98,147.97,23.776884]
[1728856523775,0.8295281,147.98,147.97,25.12795793]
[1728856524204,0.8295281,147.98,147.97,31.88605793]
[1728856524583,0.8295281,147.98,147.97,30.534984]
[1728856525482,0.8295281,147.98,147.97,31.88590593]
[1728856525876,0.8295281,147.98,147.97,50.534984]
[1728856526477,0.8295281,147.98,147.97,61.66457604]
[1728856527094,0.8295281,147.98,147.97,63.01543772]
[1728856527294,0.8295281,147.98,147.97,61.66457604]
[1728856527487,0.8295281,147.98,147.97,63.01543527]
[1728856527893,0.8295281,147.98,147.97,61.66457604]
[1728856528414,0.8295281,147.98,147.97,50.534984]
[1728856528779,0.8295281,147.98,147.97,91.66457604]
[1728856529005,0.8295281,147.98,147.97,80.534984]
[1728856529204,0.8295281,147.98,147.97,63.01551144]
[1728856529500,0.8295281,147.98,147.97,50.534984]
[1728856529701,0.8295281,147.98,147.97,61.66457604]
[1728856529876,0.8295281,147.98,147.97,63.01545297]
[1728856530078,0.8295281,147.98,147.97,61.66457604]
[1728856530299,0.8295281,147.98,147.97,63.01544724]
[1728856530804,0.8295281,147.98,147.97,61.66457604]